fUST/lending_fUST_20260508
["ID","MTS","AMOUNT","RATE_DAILY","PERIOD"]
[421817125,1778187049000,-1077.84,0.00011232,2]
[421817124,1778187049000,-500.0,0.00011232,2]
[421817130,1778187049000,-1119.36,0.00011232,2]
[421817136,1778187049000,-500.0,0.00011232,2]
[421817141,1778187049000,-500.0,0.00011232,2]
[421817142,1778187049000,-500.0,0.00011232,2]
[421817133,1778187049000,-599.14,0.00011232,2]
[421817134,1778187049000,-500.0,0.00011232,2]
[421817135,1778187049000,-2405.71,0.00011232,2]
[421817140,1778187049000,-500.0,0.00011232,2]
[421817129,1778187049000,-500.0,0.00011232,2]
[421817132,1778187049000,-1317.97,0.00011232,2]
[421817120,1778187049000,-500.0,0.00011232,2]
[421817106,1778187049000,-874.37,0.00011232,2]
[421817121,1778187049000,-500.0,0.00011232,2]
[421817139,1778187049000,-500.0,0.00011232,2]
[421817103,1778187049000,-500.0,0.00011232,2]
[421817105,1778187049000,-500.0,0.00011232,2]
[421817107,1778187049000,-500.0,0.00011232,2]
[421817108,1778187049000,-500.0,0.00011232,2]
[421817109,1778187049000,-500.0,0.00011232,2]
[421817110,1778187049000,-500.0,0.00011232,2]
[421817111,1778187049000,-500.0,0.00011232,2]
[421817112,1778187049000,-500.0,0.00011232,2]
[421817104,1778187049000,-500.0,0.00011232,2]
[421817113,1778187049000,-500.0,0.00011232,2]
[421817114,1778187049000,-1059.6,0.00011232,2]
[421817115,1778187049000,-500.0,0.00011232,2]
[421817117,1778187049000,-500.0,0.00011232,2]
[421817116,1778187049000,-500.0,0.00011232,2]
[421817126,1778187049000,-571.01,0.00011232,2]
[421817127,1778187049000,-1709.84,0.00011232,2]
[421817128,1778187049000,-500.0,0.00011232,2]
[421817137,1778187049000,-500.0,0.00011232,2]
[421817152,1778187049000,-500.0,0.00011232,2]
[421817143,1778187049000,-500.0,0.00011232,2]
[421817168,1778187049000,-2215.0,0.00011443,2]
[421817166,1778187049000,-1411.0,0.00011443,2]
[421817167,1778187049000,-645.0,0.00011443,2]
[421817164,1778187049000,-151.0,0.000114,2]
[421817165,1778187049000,-286.42852671,0.00011415,21]
[421817163,1778187049000,-151.0,0.000114,2]
[421817171,1778187049000,-151.0,0.000115,2]
[421817172,1778187049000,-500.0,0.00011505,2]
[421817173,1778187049000,-500.0,0.00011505,2]
[421817176,1778187049000,-500.0,0.00011505,2]
[421817174,1778187049000,-500.0,0.00011505,2]
[421817181,1778187049000,-500.0,0.00011505,2]
[421817180,1778187049000,-500.0,0.00011505,2]
[421817177,1778187049000,-500.0,0.00011505,2]
[421817175,1778187049000,-500.0,0.00011505,2]
[421817179,1778187049000,-500.0,0.00011505,2]
[421817138,1778187049000,-500.0,0.00011232,2]
[421817161,1778187049000,-527.02734234,0.00011347,2]
[421817162,1778187049000,-4898.38133841,0.00011378,2]
[421817182,1778187049000,-500.0,0.00011505,2]
[421817158,1778187049000,-161.57704075,0.00011235,2]
[421817160,1778187049000,-151.0,0.000113,2]
[421817146,1778187049000,-1474.67800171,0.00011232,2]
[421817149,1778187049000,-267.17721138,0.00011232,2]
[421817147,1778187049000,-542.18,0.00011232,2]
[421817145,1778187049000,-638.36590337,0.00010958,2]
[421817155,1778187049000,-160.0,0.00011235,2]
[421817178,1778187049000,-500.0,0.00011505,2]
[421817150,1778187049000,-1035.39,0.00010958,2]
[421817148,1778187049000,-500.0,0.00011232,2]
[421817156,1778187049000,-160.0,0.00011235,2]
[421817170,1778187049000,-151.0,0.000115,2]
[421817157,1778187049000,-160.0,0.00011235,2]
[421817159,1778187049000,-151.0,0.000113,2]
[421817169,1778187049000,-500.0,0.00011484,2]
[421817144,1778187049000,-1339.32199829,0.00011232,2]
[421817151,1778187049000,-232.82278862,0.00011232,2]
[421817153,1778187049000,-500.0,0.00011232,2]
[421817154,1778187049000,-1035.39,0.00011232,2]
[421817198,1778187050000,-500.0,0.00011505,2]
[421817201,1778187050000,-500.0,0.00011505,2]
[421817204,1778187050000,-500.0,0.00011505,2]
[421817208,1778187050000,-500.0,0.00011505,2]
[421817199,1778187050000,-500.0,0.00011505,2]
[421817203,1778187050000,-500.0,0.00011505,2]
[421817190,1778187050000,-500.0,0.00011505,2]
[421817200,1778187050000,-500.0,0.00011505,2]
[421817206,1778187050000,-500.0,0.00011505,2]
[421817209,1778187050000,-500.0,0.00011505,2]
[421817205,1778187050000,-500.0,0.00011505,2]
[421817211,1778187050000,-500.0,0.00011505,2]
[421817202,1778187050000,-500.0,0.00011505,2]
[421817207,1778187050000,-500.0,0.00011505,2]
[421817186,1778187050000,-500.0,0.00011505,2]
[421817192,1778187050000,-500.0,0.00011505,2]
[421817191,1778187050000,-500.0,0.00011505,2]
[421817189,1778187050000,-500.0,0.00011505,2]
[421817194,1778187050000,-500.0,0.00011505,2]
[421817188,1778187050000,-500.0,0.00011505,2]
[421817187,1778187050000,-500.0,0.00011505,2]
[421817184,1778187050000,-500.0,0.00011505,2]
[421817197,1778187050000,-500.0,0.00011505,2]
[421817196,1778187050000,-500.0,0.00011505,2]
[421817195,1778187050000,-500.0,0.00011505,2]
[421817185,1778187050000,-500.0,0.00011505,2]
[421817183,1778187050000,-500.0,0.00011505,2]
[421817222,1778187050000,-306.54956942,0.00011506,2]
[421817193,1778187050000,-500.0,0.00011505,2]
[421817215,1778187050000,-500.0,0.00011506,2]
[421817232,1778187050000,-500.0,0.00011506,2]
[421817212,1778187050000,-531.31613155,0.00011505,2]
[421817242,1778187050000,-500.0,0.00011506,2]
[421817244,1778187050000,-352.17297249,0.00011506,2]
[421817243,1778187050000,-500.0,0.00011506,2]
[421817237,1778187050000,-500.0,0.00011506,2]
[421817235,1778187050000,-500.0,0.00011506,2]
[421817239,1778187050000,-500.0,0.00011506,2]
[421817238,1778187050000,-500.0,0.00011506,2]
[421817236,1778187050000,-500.0,0.00011506,2]
[421817234,1778187050000,-500.0,0.00011506,2]
[421817241,1778187050000,-500.0,0.00011506,2]
[421817233,1778187050000,-500.0,0.00011506,2]
[421817221,1778187050000,-500.0,0.00011506,2]
[421817230,1778187050000,-500.0,0.00011506,2]
[421817231,1778187050000,-500.0,0.00011506,2]
[421817240,1778187050000,-708.07,0.00011506,2]
[421817226,1778187050000,-36.5622201,0.00011506,2]
[421817216,1778187050000,-576.37305081,0.00011506,2]
[421817213,1778187050000,-500.0,0.00011506,2]
[421817214,1778187050000,-500.0,0.00011506,2]
[421817229,1778187050000,-588.03,0.00011506,2]
[421817217,1778187050000,-500.0,0.00011506,2]
[421817218,1778187050000,-1368.0458,0.00011506,2]
[421817210,1778187050000,-500.0,0.00011505,2]
[421817220,1778187050000,-695.02,0.00011506,2]
[421817224,1778187050000,-500.0,0.00011506,2]
[421817223,1778187050000,-500.0,0.00011506,2]
[421817228,1778187050000,-500.0,0.00011506,2]
[421817227,1778187050000,-500.0,0.00011506,2]
[421817225,1778187050000,-474.1777799,0.00011506,2]
[421817219,1778187050000,-500.0,0.00011506,2]
[421817381,1778187924000,12398.65936219,7.6e-05,2]
[421817676,1778188232000,-637.92171028,9.801e-05,2]
[421817666,1778188232000,-2817.85544935,9.801e-05,2]
[421817664,1778188232000,-148.5169114,9.801e-05,2]
[421817662,1778188232000,-152.0,8.981e-05,7]
[421818111,1778188246000,-1395.70592897,9.801e-05,2]
[421818112,1778188246000,-434.815964,9.901e-05,2]
[421818113,1778188246000,-12092.69225812,0.0001,2]
[421818178,1778188251000,-500.0,0.00010958,2]
[421818142,1778188251000,-500.0,0.00010957,2]
[421818147,1778188251000,-500.0,0.00010958,2]
[421818146,1778188251000,-500.0,0.00010958,2]
[421818141,1778188251000,-500.0,0.00010957,2]
[421818144,1778188251000,-525.78,0.00010958,2]
[421818145,1778188251000,-500.0,0.00010958,2]
[421818140,1778188251000,-500.0,0.00010957,2]
[421818139,1778188251000,-500.0,0.00010957,2]
[421818138,1778188251000,-500.0,0.00010957,2]
[421818137,1778188251000,-500.0,0.00010957,2]
[421818131,1778188251000,-500.0,0.00010957,2]
[421818130,1778188251000,-300.02070105,0.00010957,2]
[421818127,1778188251000,-199.97929895,0.00010957,2]
[421818132,1778188251000,-500.0,0.00010957,2]
[421818126,1778188251000,-500.0,0.00010957,2]
[421818136,1778188251000,-500.0,0.00010957,2]
[421818125,1778188251000,-500.0,0.00010957,2]
[421818134,1778188251000,-500.0,0.00010957,2]
[421818135,1778188251000,-500.0,0.00010957,2]
[421818133,1778188251000,-500.0,0.00010957,2]
[421818120,1778188251000,-250.38489549,0.00010818,2]
[421818122,1778188251000,-456.3009281,0.00010948,2]
[421818124,1778188251000,-500.0,0.00010957,2]
[421818121,1778188251000,-196.7494668,0.00010948,2]
[421818118,1778188251000,-1526.25781394,9.9e-05,2]
[421818119,1778188251000,-11088.14452912,0.0001,2]
[421818148,1778188251000,-500.0,0.00010958,2]
[421818143,1778188251000,-500.0,0.00010958,2]
[421818123,1778188251000,-456.3009281,0.00010948,2]
[421818151,1778188251000,-500.0,0.00010958,2]
[421818149,1778188251000,-614.50789675,0.00010958,2]
[421818177,1778188251000,-500.0,0.00010958,2]
[421818176,1778188251000,-500.0,0.00010958,2]
[421818174,1778188251000,-500.0,0.00010958,2]
[421818172,1778188251000,-500.0,0.00010958,2]
[421818173,1778188251000,-500.0,0.00010958,2]
[421818168,1778188251000,-500.0,0.00010958,2]
[421818167,1778188251000,-500.0,0.00010958,2]
[421818169,1778188251000,-769.92,0.00010958,2]
[421818166,1778188251000,-500.0,0.00010958,2]
[421818170,1778188251000,-500.0,0.00010958,2]
[421818165,1778188251000,-500.0,0.00010958,2]
[421818164,1778188251000,-530.61,0.00010958,2]
[421818175,1778188251000,-1482.43,0.00010958,2]
[421818171,1778188251000,-500.0,0.00010958,2]
[421818163,1778188251000,-500.0,0.00010958,2]
[421818159,1778188251000,-500.0,0.00010958,2]
[421818152,1778188251000,-500.0,0.00010958,2]
[421818160,1778188251000,-500.0,0.00010958,2]
[421818153,1778188251000,-500.0,0.00010958,2]
[421818155,1778188251000,-500.0,0.00010958,2]
[421818150,1778188251000,-500.0,0.00010958,2]
[421818154,1778188251000,-500.0,0.00010958,2]
[421818158,1778188251000,-500.0,0.00010958,2]
[421818157,1778188251000,-500.0,0.00010958,2]
[421818161,1778188251000,-500.0,0.00010958,2]
[421818162,1778188251000,-500.0,0.00010958,2]
[421818156,1778188251000,-500.0,0.00010958,2]
[421818204,1778188252000,-500.0,0.00010958,2]
[421818203,1778188252000,-500.0,0.00010958,2]
[421818207,1778188252000,-500.0,0.00010958,2]
[421818214,1778188252000,-500.0,0.00010958,2]
[421818206,1778188252000,-308.80042349,0.00010958,2]
[421818209,1778188252000,-500.0,0.00010958,2]
[421818208,1778188252000,-506.69,0.00010958,2]
[421818215,1778188252000,-504.89,0.00010958,2]
[421818210,1778188252000,-1723.6082,0.00010958,2]
[421818211,1778188252000,-500.0,0.00010958,2]
[421818219,1778188252000,-500.0,0.00010958,2]
[421818212,1778188252000,-500.0,0.00010958,2]
[421818216,1778188252000,-500.0,0.00010958,2]
[421818217,1778188252000,-500.0,0.00010958,2]
[421818218,1778188252000,-500.0,0.00010958,2]
[421818221,1778188252000,-549.0,0.00010958,2]
[421818226,1778188252000,-500.0,0.00010958,2]
[421818224,1778188252000,-500.0,0.00010958,2]
[421818201,1778188252000,-500.0,0.00010958,2]
[421818220,1778188252000,-500.0,0.00010958,2]
[421818213,1778188252000,-1385.3,0.00010958,2]
[421818202,1778188252000,-719.6,0.00010958,2]
[421818187,1778188252000,-500.0,0.00010958,2]
[421818200,1778188252000,-500.0,0.00010958,2]
[421818223,1778188252000,-500.0,0.00010958,2]
[421818181,1778188252000,-500.0,0.00010958,2]
[421818180,1778188252000,-500.0,0.00010958,2]
[421818179,1778188252000,-500.0,0.00010958,2]
[421818183,1778188252000,-500.0,0.00010958,2]
[421818182,1778188252000,-500.0,0.00010958,2]
[421818184,1778188252000,-599.02,0.00010958,2]
[421818185,1778188252000,-500.0,0.00010958,2]
[421818186,1778188252000,-555.22,0.00010958,2]
[421818199,1778188252000,-1459.41,0.00010958,2]
[421818188,1778188252000,-640.82,0.00010958,2]
[421818189,1778188252000,-500.0,0.00010958,2]
[421818190,1778188252000,-690.95,0.00010958,2]
[421818191,1778188252000,-500.0,0.00010958,2]
[421818193,1778188252000,-500.0,0.00010958,2]
[421818192,1778188252000,-500.0,0.00010958,2]
[421818195,1778188252000,-500.0,0.00010958,2]
[421818197,1778188252000,-500.0,0.00010958,2]
[421818198,1778188252000,-500.0,0.00010958,2]
[421818196,1778188252000,-500.0,0.00010958,2]
[421818194,1778188252000,-581.09,0.00010958,2]
[421818222,1778188252000,-500.0,0.00010958,2]
[421818205,1778188252000,-775.63,0.00010958,2]
[421818232,1778188252000,-500.0,0.00010958,2]
[421818252,1778188252000,-572.2,0.00010958,2]
[421818253,1778188252000,-1504.68,0.00010958,2]
[421818254,1778188252000,-500.0,0.00010958,2]
[421818255,1778188252000,-1192.49,0.00010958,2]
[421818256,1778188252000,-500.0,0.00010958,2]
[421818257,1778188252000,-710.82,0.00010958,2]
[421818259,1778188252000,-500.0,0.00010958,2]
[421818260,1778188252000,-500.0,0.00010958,2]
[421818264,1778188252000,-500.0,0.00010958,2]
[421818249,1778188252000,-500.0,0.00010958,2]
[421818258,1778188252000,-1407.32,0.00010958,2]
[421818261,1778188252000,-500.0,0.00010958,2]
[421818262,1778188252000,-500.0,0.00010958,2]
[421818266,1778188252000,-500.0,0.00010958,2]
[421818267,1778188252000,-1180.42,0.00010958,2]
[421818269,1778188252000,-2668.57,0.00010958,2]
[421818270,1778188252000,-500.0,0.00010958,2]
[421818271,1778188252000,-500.0,0.00010958,2]
[421818268,1778188252000,-500.0,0.00010958,2]
[421818225,1778188252000,-500.0,0.00010958,2]
[421818263,1778188252000,-978.65,0.00010958,2]
[421818251,1778188252000,-702.71,0.00010958,2]
[421818265,1778188252000,-500.0,0.00010958,2]
[421818248,1778188252000,-709.56,0.00010958,2]
[421818250,1778188252000,-1105.62,0.00010958,2]
[421818233,1778188252000,-500.0,0.00010958,2]
[421818227,1778188252000,-500.0,0.00010958,2]
[421818234,1778188252000,-500.0,0.00010958,2]
[421818229,1778188252000,-519.22,0.00010958,2]
[421818231,1778188252000,-500.0,0.00010958,2]
[421818230,1778188252000,-500.0,0.00010958,2]
[421818235,1778188252000,-500.0,0.00010958,2]
[421818236,1778188252000,-500.0,0.00010958,2]
[421818237,1778188252000,-500.0,0.00010958,2]
[421818228,1778188252000,-500.0,0.00010958,2]
[421818239,1778188252000,-675.15,0.00010958,2]
[421818238,1778188252000,-505.37,0.00010958,2]
[421818246,1778188252000,-500.0,0.00010958,2]
[421818272,1778188252000,-1066.3,0.00010958,2]
[421818244,1778188252000,-500.0,0.00010958,2]
[421818245,1778188252000,-500.0,0.00010958,2]
[421818243,1778188252000,-3786.36,0.00010958,2]
[421818242,1778188252000,-500.0,0.00010958,2]
[421818241,1778188252000,-4939.84,0.00010958,2]
[421818240,1778188252000,-500.0,0.00010958,2]
[421818247,1778188252000,-500.0,0.00010958,2]
[421818292,1778188253000,-886.09,0.00010958,2]
[421818298,1778188253000,-20032.94,0.00010958,2]
[421818295,1778188253000,-500.0,0.00010958,2]
[421818296,1778188253000,-500.0,0.00010958,2]
[421818297,1778188253000,-2132.02,0.00010958,2]
[421818300,1778188253000,-4031.3,0.00010958,2]
[421818294,1778188253000,-680.51,0.00010958,2]
[421818303,1778188253000,-500.0,0.00010958,2]
[421818302,1778188253000,-500.0,0.00010958,2]
[421818301,1778188253000,-500.0,0.00010958,2]
[421818304,1778188253000,-500.0,0.00010958,2]
[421818305,1778188253000,-500.0,0.00010958,2]
[421818308,1778188253000,-842.21,0.00010958,2]
[421818293,1778188253000,-500.0,0.00010958,2]
[421818307,1778188253000,-500.0,0.00010958,2]
[421818299,1778188253000,-1214.82,0.00010958,2]
[421818291,1778188253000,-500.0,0.00010958,2]
[421818279,1778188253000,-500.0,0.00010958,2]
[421818289,1778188253000,-500.0,0.00010958,2]
[421818306,1778188253000,-932.22,0.00010958,2]
[421818274,1778188253000,-500.0,0.00010958,2]
[421818273,1778188253000,-1104.6,0.00010958,2]
[421818275,1778188253000,-3679.97,0.00010958,2]
[421818283,1778188253000,-619.56,0.00010958,2]
[421818276,1778188253000,-500.0,0.00010958,2]
[421818277,1778188253000,-500.0,0.00010958,2]
[421818288,1778188253000,-500.0,0.00010958,2]
[421818278,1778188253000,-500.0,0.00010958,2]
[421818280,1778188253000,-500.0,0.00010958,2]
[421818281,1778188253000,-500.0,0.00010958,2]
[421818284,1778188253000,-500.0,0.00010958,2]
[421818285,1778188253000,-500.0,0.00010958,2]
[421818287,1778188253000,-500.0,0.00010958,2]
[421818286,1778188253000,-500.0,0.00010958,2]
[421818290,1778188253000,-1858.57,0.00010958,2]
[421818282,1778188253000,-2325.5,0.00010958,2]
[421818309,1778188253000,-954.5,0.00010958,2]
[421818312,1778188253000,-500.0,0.00010958,2]
[421818311,1778188253000,-908.3,0.00010958,2]
[421818333,1778188253000,-500.0,0.00010958,2]
[421818331,1778188253000,-2205.24,0.00010958,2]
[421818334,1778188253000,-949.11,0.00010958,2]
[421818336,1778188253000,-1625.44,0.00010958,2]
[421818338,1778188253000,-500.0,0.00010958,2]
[421818341,1778188253000,-344.67276147,0.00010958,2]
[421818342,1778188253000,-500.0,0.00010958,2]
[421818332,1778188253000,-1208.14,0.00010958,2]
[421818339,1778188253000,-500.0,0.00010958,2]
[421818343,1778188253000,-500.0,0.00010958,2]
[421818344,1778188253000,-284.44538848,0.00010958,2]
[421818345,1778188253000,-500.0,0.00010958,2]
[421818346,1778188253000,-645.96,0.00010958,2]
[421818347,1778188253000,-500.0,0.00010958,2]
[421818310,1778188253000,-500.0,0.00010958,2]
[421818348,1778188253000,-451.7759143,0.00010958,2]
[421818340,1778188253000,-500.0,0.00010958,2]
[421818335,1778188253000,-500.0,0.00010958,2]
[421818337,1778188253000,-500.0,0.00010958,2]
[421818330,1778188253000,-500.0,0.00010958,2]
[421818313,1778188253000,-1675.89,0.00010958,2]
[421818329,1778188253000,-2579.5,0.00010958,2]
[421818315,1778188253000,-500.0,0.00010958,2]
[421818314,1778188253000,-500.0,0.00010958,2]
[421818316,1778188253000,-500.0,0.00010958,2]
[421818317,1778188253000,-971.3,0.00010958,2]
[421818322,1778188253000,-500.0,0.00010958,2]
[421818320,1778188253000,-1026.08,0.00010958,2]
[421818318,1778188253000,-500.0,0.00010958,2]
[421818326,1778188253000,-500.0,0.00010958,2]
[421818321,1778188253000,-1136.3,0.00010958,2]
[421818323,1778188253000,-1567.35,0.00010958,2]
[421818324,1778188253000,-500.0,0.00010958,2]
[421818328,1778188253000,-549.21,0.00010958,2]
[421818325,1778188253000,-988.02,0.00010958,2]
[421818319,1778188253000,-500.0,0.00010958,2]
[421818327,1778188253000,-523.42,0.00010958,2]
[421818378,1778188254000,-507.14,0.00011232,2]
[421818376,1778188254000,-500.0,0.00011232,2]
[421818377,1778188254000,-500.0,0.00011232,2]
[421818367,1778188254000,-160.0,0.00011181,2]
[421818374,1778188254000,-500.0,0.00011232,2]
[421818366,1778188254000,-600.0,0.00011176,2]
[421818375,1778188254000,-525.78,0.00011232,2]
[421818379,1778188254000,-500.0,0.00011232,2]
[421818380,1778188254000,-500.0,0.00011232,2]
[421818385,1778188254000,-500.0,0.00011232,2]
[421818382,1778188254000,-500.0,0.00011232,2]
[421818384,1778188254000,-500.0,0.00011232,2]
[421818383,1778188254000,-500.0,0.00011232,2]
[421818389,1778188254000,-500.0,0.00011232,2]
[421818388,1778188254000,-500.0,0.00011232,2]
[421818390,1778188254000,-500.0,0.00011232,2]
[421818387,1778188254000,-512.27,0.00011232,2]
[421818370,1778188254000,-161.57704075,0.00011181,2]
[421818381,1778188254000,-500.0,0.00011232,2]
[421818365,1778188254000,-300.0,0.00011176,2]
[421818352,1778188254000,-300.0,0.00011176,2]
[421818371,1778188254000,-442.0,0.00011212,2]
[421818386,1778188254000,-500.0,0.00011232,2]
[421818349,1778188254000,-4671.95126949,0.00011121,2]
[421818350,1778188254000,-456.2418086,0.00011152,2]
[421818351,1778188254000,-300.0,0.00011176,2]
[421818353,1778188254000,-300.0,0.00011176,2]
[421818354,1778188254000,-300.0,0.00011176,2]
[421818355,1778188254000,-300.0,0.00011176,2]
[421818356,1778188254000,-300.0,0.00011176,2]
[421818357,1778188254000,-300.0,0.00011176,2]
[421818361,1778188254000,-300.0,0.00011176,2]
[421818358,1778188254000,-300.0,0.00011176,2]
[421818360,1778188254000,-300.0,0.00011176,2]
[421818362,1778188254000,-300.0,0.00011176,2]
[421818359,1778188254000,-300.0,0.00011176,2]
[421818373,1778188254000,-185.0,0.00011212,2]
[421818363,1778188254000,-300.0,0.00011176,2]
[421818368,1778188254000,-160.0,0.00011181,2]
[421818372,1778188254000,-741.0,0.00011212,2]
[421818364,1778188254000,-300.0,0.00011176,2]
[421818369,1778188254000,-160.0,0.00011181,2]
[421818391,1778188254000,-500.0,0.00011232,2]
[421818430,1778188254000,-603.47,0.00011232,2]
[421818394,1778188254000,-500.0,0.00011232,2]
[421818419,1778188254000,-500.0,0.00011232,2]
[421818420,1778188254000,-581.09,0.00011232,2]
[421818424,1778188254000,-500.0,0.00011232,2]
[421818421,1778188254000,-500.0,0.00011232,2]
[421818418,1778188254000,-500.0,0.00011232,2]
[421818422,1778188254000,-500.0,0.00011232,2]
[421818417,1778188254000,-500.0,0.00011232,2]
[421818423,1778188254000,-500.0,0.00011232,2]
[421818425,1778188254000,-1459.41,0.00011232,2]
[421818429,1778188254000,-500.0,0.00011232,2]
[421818431,1778188254000,-775.63,0.00011232,2]
[421818427,1778188254000,-500.0,0.00011232,2]
[421818433,1778188254000,-500.0,0.00011232,2]
[421818428,1778188254000,-719.6,0.00011232,2]
[421818432,1778188254000,-500.0,0.00011232,2]
[421818434,1778188254000,-1723.6082,0.00011232,2]
[421818435,1778188254000,-500.0,0.00011232,2]
[421818436,1778188254000,-500.0,0.00011232,2]
[421818393,1778188254000,-500.0,0.00011232,2]
[421818416,1778188254000,-690.95,0.00011232,2]
[421818415,1778188254000,-627.92248606,0.00011232,2]
[421818426,1778188254000,-567.71,0.00011232,2]
[421818412,1778188254000,-599.02,0.00011232,2]
[421818414,1778188254000,-500.0,0.00011232,2]
[421818396,1778188254000,-500.0,0.00011232,2]
[421818397,1778188254000,-769.92,0.00011232,2]
[421818395,1778188254000,-500.0,0.00011232,2]
[421818399,1778188254000,-500.0,0.00011232,2]
[421818401,1778188254000,-500.0,0.00011232,2]
[421818398,1778188254000,-500.0,0.00011232,2]
[421818400,1778188254000,-500.0,0.00011232,2]
[421818402,1778188254000,-500.0,0.00011232,2]
[421818403,1778188254000,-1482.43,0.00011232,2]
[421818392,1778188254000,-530.61,0.00011232,2]
[421818405,1778188254000,-500.0,0.00011232,2]
[421818411,1778188254000,-500.0,0.00011232,2]
[421818407,1778188254000,-500.0,0.00011232,2]
[421818409,1778188254000,-500.0,0.00011232,2]
[421818408,1778188254000,-500.0,0.00011232,2]
[421818406,1778188254000,-500.0,0.00011232,2]
[421818410,1778188254000,-500.0,0.00011232,2]
[421818413,1778188254000,-500.0,0.00011232,2]
[421818404,1778188254000,-500.0,0.00011232,2]
[421818460,1778188255000,-709.56,0.00011232,2]
[421818467,1778188255000,-1192.49,0.00011232,2]
[421818468,1778188255000,-500.0,0.00011232,2]
[421818465,1778188255000,-1504.68,0.00011232,2]
[421818463,1778188255000,-702.71,0.00011232,2]
[421818462,1778188255000,-1105.62,0.00011232,2]
[421818458,1778188255000,-584.34657012,0.00011232,2]
[421818466,1778188255000,-500.0,0.00011232,2]
[421818464,1778188255000,-572.2,0.00011232,2]
[421818472,1778188255000,-500.0,0.00011232,2]
[421818473,1778188255000,-500.0,0.00011232,2]
[421818471,1778188255000,-516.41,0.00011232,2]
[421818469,1778188255000,-710.82,0.00011232,2]
[421818474,1778188255000,-193.4467298,0.00011232,2]
[421818482,1778188255000,-1066.3,0.00011232,2]
[421818476,1778188255000,-500.0,0.00011232,2]
[421818475,1778188255000,-978.65,0.00011232,2]
[421818477,1778188255000,-1180.42,0.00011232,2]
[421818478,1778188255000,-500.0,0.00011232,2]
[421818470,1778188255000,-1407.32,0.00011232,2]
[421818461,1778188255000,-500.0,0.00011232,2]
[421818480,1778188255000,-500.0,0.00011232,2]
[421818457,1778188255000,-500.0,0.00011232,2]
[421818437,1778188255000,-500.0,0.00011232,2]
[421818438,1778188255000,-1385.3,0.00011232,2]
[421818439,1778188255000,-500.0,0.00011232,2]
[421818440,1778188255000,-500.0,0.00011232,2]
[421818444,1778188255000,-500.0,0.00011232,2]
[421818442,1778188255000,-500.0,0.00011232,2]
[421818441,1778188255000,-559.25,0.00011232,2]
[421818443,1778188255000,-549.0,0.00011232,2]
[421818445,1778188255000,-500.0,0.00011232,2]
[421818446,1778188255000,-500.0,0.00011232,2]
[421818448,1778188255000,-500.0,0.00011232,2]
[421818449,1778188255000,-519.22,0.00011232,2]
[421818447,1778188255000,-500.0,0.00011232,2]
[421818452,1778188255000,-500.0,0.00011232,2]
[421818451,1778188255000,-500.0,0.00011232,2]